[Event "Portugal Honour 2021"]
[Site "Fatima"]
[Date "2021.04.09"]
[Round "5.10"]
[White "Santos, Ruben"]
[Black "Lavrador, Rodolfo"]
[Result "1/2-1/2"]
[ECO "A40"]
[WhiteElo "1759"]
[BlackElo "1815"]
[Annotator "NA"]
[PlyCount "105"]
[EventDate "2021.04.06"]
[EventType "tourn"]
[EventCountry "POR"]
[SourceTitle "playchess.com"]
[Source "ChessBase"]
[SourceQuality "1"]
[TimeControl "5400+30"]

1. d4 {[%emt 0:00:00]} e6 {[%emt 0:00:00]} 2. a3 {[%emt 0:00:31]} Nf6 {[%emt 0:01:44]} 3. c4 {[%emt 0:00:19]} Be7 {[%emt 0:02:15]} 4. Nc3 {[%emt 0:00:23]} d5 {[%emt 0:00:55]} 5. Nf3 {[%emt 0:01:49]} O-O {[%emt 0:00:23]} 6. Bg5 {[%emt 0:01:00]} c6 {[%emt 0:01:03]} 7. e3 {[%emt 0:00:17]} Nbd7 {[%emt 0:00:22]} 8. Bd3 {[%emt 0:03:52]} h6 {[%emt 0:01:25]} 9. Bh4 {[%emt 0:00:34]} Re8 {[%emt 0:02:55]} 10. O-O {[%emt 0:00:56]} dxc4 {[%emt 0:02:11]} 11. Bxc4 {[%emt 0:00:31]} Nd5 {[%emt 0:00:41]} 12. Bg3 {[%emt 0:02:47]} Bf6 {[%emt 0:01:04]} 13. Ne4 {[%emt 0:02:36]} Be7 {[%emt 0:04:23]} 14. Rc1 {[%emt 0:06:14]} N7f6 {[%emt 0:03:49]} 15. Nfd2 {[%emt 0:01:04]} Nxe4 {[%emt 0:05:37]} 16. Nxe4 {[%emt 0:01:32]} Nf6 {[%emt 0:00:30]} 17. Bd3 {[%emt 0:00:47]} Bd7 {[%emt 0:08:33]} 18. Nd6 Bxd6 {[%emt 0:00:25]} 19. Bxd6 {[%emt 0:05:03]} Rc8 {[%emt 0:01:59]} 20. Bc5 {[%emt 0:08:41]} e5 {[%emt 0:03:12]} 21. Bxa7 {[%emt 0:00:32]} e4 {[%emt 0:00:30]} 22. Bc4 {[%emt 0:01:44]} Be6 {[%emt 0:07:00]} 23. Bc5 {[%emt 0:00:13]} Bxc4 {[%emt 0:00:19]} 24. Rxc4 {[%emt 0:02:08]} Qd5 {[%emt 0:00:59]} 25. Qe2 {[%emt 0:01:19]} Re6 {[%emt 0:02:54]} 26. Rfc1 {[%emt 0:08:52]} Rce8 {[%emt 0:02:47]} 27. Ra4 {[%emt 0:05:09]} Qg5 {[%emt 0:01:19]} 28. Ra7 {[%emt 0:02:58]} b5 {[%emt 0:00:57]} 29. Bb4 {[%emt 0:09:14]} Nd5 {[%emt 0:01:44]} 30. Rc5 {[%emt 0:00:38]} Rg6 {[%emt 0:00:16]} 31. g3 {[%emt 0:00:48]} h5 {[%emt 0:00:52]} 32. Ra6 {[%emt 0:04:30]} Ree6 {[%emt 0:04:45]} 33. Qc2 {[%emt 0:06:37]} h4 34. Rcxc6 {[%emt 0:00:02]} hxg3 {[%emt 0:01:12]} 35. hxg3 {[%emt 0:01:57]} Qg4 36. Rc8+ Kh7 {[%emt 0:06:19]} 37. Raa8 {[%emt 0:00:33]} Rgf6 {[%emt 0:02:41]} 38. Rh8+ {[%emt 0:08:32]} Kg6 {[%emt 0:00:11]} 39. Be1 {[%emt 0:00:26]} Qf3 {[%emt 0:11:17]} 40. Qd2 {[%emt 0:00:19]} Kf5 {[%emt 0:02:47]} 41. Rh4 {[%emt 0:05:06]} Rh6 {[%emt 0:03:32]} 42. Rh8 {[%emt 0:00:35]} Rxh8 43. Rxh8 Rh6 {[%emt 0:06:56]} 44. Rxh6 {[%emt 0:00:38]} gxh6 {[%emt 0:00:13]} 45. Qc2 {[%emt 0:06:47]} Kg4 46. Qc8+ {[%emt 0:00:19]} f5 {[%emt 0:01:27]} 47. Kh2 Nxe3 48. Qg8+ {[%emt 0:01:53]} Kh5 {[%emt 0:06:08]} 49. Qf7+ {[%emt 0:02:59]} Kg5 {[%emt 0:00:12]} 50. Qe7+ {[%emt 0:00:34]} Kg6 {[%emt 0:01:38]} 51. Qd6+ {[%emt 0:00:31]} Kg7 {[%emt 0:00:17]} 52. Qe5+ Kg6 53. Qe6+ {[%emt 0:01:03]} 1/2-1/2

[Event "Portugal Honour 2021"]
[Site "Fatima"]
[Date "2021.04.10"]
[Round "6.6"]
[White "Goncalves, Carlos"]
[Black "Lavrador, Rodolfo"]
[Result "1-0"]
[ECO "A05"]
[WhiteElo "1600"]
[BlackElo "1815"]
[Annotator "NA"]
[PlyCount "39"]
[EventDate "2021.04.06"]
[EventType "tourn"]
[EventCountry "POR"]
[SourceTitle "playchess.com"]
[Source "ChessBase"]
[SourceQuality "1"]
[TimeControl "5400+30"]

1. Nf3 {[%emt 0:02:28]} Nf6 {[%emt 0:00:37]} 2. g3 {[%emt 0:00:12]} d5 {[%emt 0:01:32]} 3. Bg2 {[%emt 0:00:13]} Nbd7 {[%emt 0:01:54]} 4. d4 {[%emt 0:05:22]} Ne4 {[%emt 0:04:06]} 5. O-O {[%emt 0:07:56]} Ndf6 {[%emt 0:02:54]} 6. Nbd2 {[%emt 0:01:33]} c6 {[%emt 0:03:52]} 7. Nxe4 {[%emt 0:02:23]} Nxe4 {[%emt 0:00:34]} 8. Nd2 {[%emt 0:08:23]} Nd6 {[%emt 0:05:08]} 9. Re1 {[%emt 0:04:17]} Bf5 {[%emt 0:01:30]} 10. c4 {[%emt 0:02:54]} dxc4 {[%emt 0:12:12]} 11. e4 {[%emt 0:00:27]} Bg6 {[%emt 0:00:27]} 12. e5 {[%emt 0:00:15]} Nf5 {[%emt 0:01:43]} 13. Nxc4 {[%emt 0:00:48]} Qxd4 {[%emt 0:00:35]} 14. Qb3 {[%emt 0:07:29]} O-O-O {[%emt 0:05:52]} 15. Bf4 {[%emt 0:05:13]} e6 {[%emt 0:05:06]} 16. Rad1 {[%emt 0:00:39]} Qc5 {[%emt 0:00:29]} 17. Rxd8+ {[%emt 0:00:52]} Kxd8 {[%emt 0:00:16]} 18. Qxb7 {[%emt 0:06:00]} Qxc4 {[%emt 0:01:43]} 19. Rd1+ {[%emt 0:00:50]} Nd4 {[%emt 0:02:44]} 20. Bxc6 {[%emt 0:00:28]} 1-0

[Event "Portugal Honour 2021"]
[Site "Fatima"]
[Date "2021.04.10"]
[Round "6.7"]
[White "Barrento, Jorge"]
[Black "Santos, Ruben"]
[Result "0-1"]
[ECO "D02"]
[WhiteElo "1724"]
[BlackElo "1759"]
[Annotator "NA RC"]
[PlyCount "110"]
[EventDate "2021.04.06"]
[EventType "tourn"]
[EventCountry "POR"]
[SourceTitle "playchess.com"]
[Source "ChessBase"]
[SourceQuality "1"]
[TimeControl "5400+30"]

1. d4 {[%emt 0:00:00]} d5 {[%emt 0:00:00]} 2. Nf3 {[%emt 0:00:00]} Bg4 {[%emt 0:00:00]} 3. Ne5 {[%emt 0:01:14]} Bf5 {[%emt 0:00:00]} 4. c4 {[%emt 0:01:46]} e6 {[%emt 0:01:31]} 5. Qa4+ {[%emt 0:06:49]} c6 {[%emt 0:00:38]} 6. Nc3 {[%emt 0:02:48]} Bd6 {[%emt 0:05:40]} 7. e3 {[%emt 0:04:15]} Ne7 {[%emt 0:11:53]} 8. g4 {[%emt 0:02:50]} Bg6 {[%emt 0:01:05]} 9. h4 {[%emt 0:01:40]} f6 {[%emt 0:01:51]} 10. Nxg6 {[%emt 0:01:04]} hxg6 {[%emt 0:00:20]} 11. Bg2 {[%emt 0:03:47]} Nd7 {[%emt 0:00:43]} 12. cxd5 {[%emt 0:00:47]} exd5 {[%emt 0:00:49]} 13. e4 dxe4 {[%emt 0:03:31]} 14. Nxe4 {[%emt 0:03:24]} Nb6 {[%emt 0:00:07]} 15. Nxd6+ {[%emt 0:05:03]} Qxd6 {[%emt 0:00:08]} 16. Qc2 {[%emt 0:00:56]} O-O-O {[%emt 0:00:28]} 17. g5 {[%emt 0:02:32]} Qxd4 {[%emt 0:02:37]} 18. Be3 {[%emt 0:01:42]} Qb4+ {[%emt 0:00:08]} 19. Bd2 {[%emt 0:07:44]} Qc4 {[%emt 0:02:48]} 20. Qxc4 {[%emt 0:06:27]} Nxc4 {[%emt 0:01:40]} 21. Bc3 {[%emt 0:02:20]} fxg5 {[%emt 0:11:42]} 22. Bxg7 {[%emt 0:06:45]} Rxh4 {[%emt 0:01:01]} 23. Rxh4 {[%emt 0:00:18]} gxh4 {[%emt 0:00:08]} 24. Bf6 {[%emt 0:00:21]} Re8 {[%emt 0:00:07]} 25. O-O-O {[%emt 0:03:27]} Kc7 {[%emt 0:08:35]} 26. Re1 {[%emt 0:03:44]} Kd7 {[%emt 0:01:39]} 27. Bxh4 {[%emt 0:05:36]} Nf5 {[%emt 0:00:30]} 28. Rxe8 {[%emt 0:02:41]} Kxe8 {[%emt 0:05:18]} 29. Bf6 {[%emt 0:02:16]} Kf7 {[%emt 0:00:09]} 30. Bd8 {[%emt 0:01:04]} Ne5 {[%emt 0:00:40]} 31. Bf1 {[%emt 0:01:39]} Ng4 {[%emt 0:00:38]} 32. f4 {[%emt 0:04:02]} Nge3 {[%emt 0:02:42]} 33. Bh3 {[%emt 0:00:52]} Ke6 {[%emt 0:00:31]} 34. Bc7 {[%emt 0:00:39]} Kd5 {[%emt 0:00:17]} 35. b3 {[%emt 0:02:29]} Ke4 {[%emt 0:00:18]} 36. Bb8 {[%emt 0:01:34]} a6 {[%emt 0:00:09]} 37. Kd2 {[%emt 0:00:57]} Kf3 {[%emt 0:00:17]} 38. Kd3 {[%emt 0:01:44]} Nd5 {[%emt 0:00:15]} 39. Kc4 {[%emt 0:03:22]} Nxf4 {[%emt 0:01:15]} 40. Bxf4 {[%emt 0:02:58]} Kxf4 {[%emt 0:00:11]} 41. Kc5 {[%emt 0:00:19]} Kg3 {[%emt 0:00:10]} 42. Bf1 {[%emt 0:00:42]} Ne3 {[%emt 0:02:19]} 43. Bd3 {[%emt 0:00:38]} g5 {[%emt 0:00:58]} 44. Kb6 {[%emt 0:01:45]} Kf2 {[%emt 0:00:06]} 45. Kxb7 {[%emt 0:00:47]} g4 {[%emt 0:00:30]} 46. Be4 {[%emt 0:01:28]} g3 {[%emt 0:00:55]} 47. Kxa6 {[%emt 0:00:37]} Nf5 {[%emt 0:05:42]} 48. a4 {[%emt 0:01:32]} Nd4 {[%emt 0:03:26]} 49. Bh1 {[%emt 0:00:39]} c5 {[%emt 0:19:55]} 50. a5 {[%emt 0:00:48]} Nxb3 {[%emt 0:00:55]} 51. Kb5 {[%emt 0:00:24]} Nxa5 {[%emt 0:00:11]} 52. Kxa5 {[%emt 0:00:06]} Ke3 {[%emt 0:00:05]} 53. Ka4 {[%emt 0:00:39]} Kd3 {[%emt 0:00:28]} 54. Bg2 {[%emt 0:02:05]} c4 {[%emt 0:00:25]} 55. Bf1+ {[%emt 0:00:17]} Kd2 {[%emt 0:00:11]} 0-1

[Event "Portugal Honour 2021"]
[Site "Fatima"]
[Date "2021.04.10"]
[Round "6.8"]
[White "Santos, Julio"]
[Black "Bartolo, Filipe"]
[Result "1-0"]
[ECO "C50"]
[WhiteElo "1884"]
[BlackElo "1876"]
[Annotator "NA RC"]
[PlyCount "119"]
[EventDate "2021.04.06"]
[EventType "tourn"]
[EventCountry "POR"]
[SourceTitle "playchess.com"]
[Source "ChessBase"]
[SourceQuality "1"]
[TimeControl "5400+30"]

1. e4 {[%emt 0:00:00]} e5 {[%emt 0:03:19]} 2. Nf3 {[%emt 0:00:00]} Nc6 {[%emt 0:00:04]} 3. Bc4 {[%emt 0:01:47]} Bc5 {[%emt 0:00:29]} 4. O-O {[%emt 0:00:41]} Nf6 {[%emt 0:01:02]} 5. d3 {[%emt 0:00:18]} d6 {[%emt 0:00:07]} 6. Nc3 {[%emt 0:01:58]} Bg4 {[%emt 0:01:49]} 7. h3 {[%emt 0:00:13]} Bh5 {[%emt 0:00:24]} 8. Be3 {[%emt 0:02:28]} Qd7 {[%emt 0:32:39]} 9. Kh2 {[%emt 0:05:16]} O-O-O {[%emt 0:10:00]} 10. Nd5 {[%emt 0:07:33]} Nxd5 {[%emt 0:11:20]} 11. Bxd5 {[%emt 0:00:24]} Ne7 {[%emt 0:09:23]} 12. g4 {[%emt 0:01:20]} Bxe3 {[%emt 0:02:07]} 13. fxe3 {[%emt 0:00:11]} Nxd5 {[%emt 0:00:20]} 14. exd5 {[%emt 0:00:14]} Bg6 {[%emt 0:00:11]} 15. e4 h5 {[%emt 0:02:53]} 16. g5 {[%emt 0:09:17]} Rdf8 {[%emt 0:02:43]} 17. Nh4 {[%emt 0:00:42]} Bh7 {[%emt 0:00:24]} 18. Rf3 {[%emt 0:02:26]} Qe7 {[%emt 0:05:56]} 19. Qd2 {[%emt 0:00:02]} f5 {[%emt 0:00:29]} 20. exf5 {[%emt 0:00:29]} e4 {[%emt 0:01:13]} 21. Re1 {[%emt 0:00:30]} Qe5+ {[%emt 0:00:54]} 22. Qf4 {[%emt 0:07:03]} Qxd5 {[%emt 0:05:18]} 23. Qxe4 {[%emt 0:07:49]} Qxa2 {[%emt 0:00:29]} 24. Qd4 {[%emt 0:00:23]} Qa5 {[%emt 0:02:31]} 25. b4 {[%emt 0:02:41]} Qa4 {[%emt 0:00:57]} 26. Re7 {[%emt 0:00:58]} Re8 {[%emt 0:04:44]} 27. Qxg7 {[%emt 0:11:34]} Rxe7 {[%emt 0:01:11]} 28. Qxh8+ {[%emt 0:01:21]} Kd7 {[%emt 0:00:29]} 29. f6 {[%emt 0:06:18]} Qxc2+ {[%emt 0:00:21]} 30. Kg3 {[%emt 0:03:08]} Qc1 {[%emt 0:00:37]} 31. fxe7 {[%emt 0:01:19]} Qxg5+ {[%emt 0:00:06]} 32. Kh2 {[%emt 0:00:23]} Qxe7 {[%emt 0:00:07]} 33. Qd4 {[%emt 0:01:01]} Kc6 {[%emt 0:01:04]} 34. Ng2 {[%emt 0:04:57]} a6 {[%emt 0:00:15]} 35. Nf4 {[%emt 0:00:49]} Qe1 {[%emt 0:00:55]} 36. Qc4+ {[%emt 0:03:35]} Kb6 {[%emt 0:00:37]} 37. Nd5+ {[%emt 0:03:20]} Ka7 {[%emt 0:00:01]} 38. Qd4+ {[%emt 0:00:32]} b6 {[%emt 0:00:19]} 39. Nxb6 {[%emt 0:00:24]} Qe2+ {[%emt 0:00:53]} 40. Rf2 {[%emt 0:00:07]} Qxd3 {[%emt 0:00:19]} 41. Qxd3 {[%emt 0:03:01]} Bxd3 {[%emt 0:00:02]} 42. Nd5 {[%emt 0:00:16]} Kb8 {[%emt 0:00:30]} 43. Nf4 {[%emt 0:00:54]} Bc4 {[%emt 0:00:13]} 44. Nxh5 {[%emt 0:00:15]} Kb7 {[%emt 0:00:02]} 45. Nf6 {[%emt 0:00:27]} Kb6 {[%emt 0:00:27]} 46. h4 {[%emt 0:00:11]} Kb5 {[%emt 0:00:11]} 47. Rf4 {[%emt 0:02:17]} Bd3 {[%emt 0:01:36]} 48. h5 {[%emt 0:00:16]} c5 {[%emt 0:00:45]} 49. bxc5 {[%emt 0:00:15]} dxc5 {[%emt 0:00:06]} 50. h6 {[%emt 0:00:22]} Bg6 {[%emt 0:00:57]} 51. Rg4 {[%emt 0:02:36]} Bf5 {[%emt 0:00:09]} 52. Rg5 {[%emt 0:00:02]} Bd3 {[%emt 0:00:22]} 53. Nd7 {[%emt 0:00:07]} a5 {[%emt 0:00:13]} 54. Nxc5 {[%emt 0:00:18]} Bh7 {[%emt 0:00:15]} 55. Nd7+ {[%emt 0:00:39]} Kb4 {[%emt 0:00:48]} 56. Nf6 {[%emt 0:00:43]} Bc2 {[%emt 0:00:11]} 57. Nd5+ {[%emt 0:00:17]} Ka4 {[%emt 0:00:52]} 58. Ne3 {[%emt 0:00:34]} Bh7 {[%emt 0:00:05]} 59. Nc4 {[%emt 0:00:19]} Kb4 {[%emt 0:00:13]} 60. Nxa5 {[%emt 0:00:17]} 1-0

[Event "Portugal Honour 2021"]
[Site "Fatima"]
[Date "2021.04.10"]
[Round "6.9"]
[White "Morais, Vitor"]
[Black "Sarabando, Rodrigo"]
[Result "0-1"]
[ECO "A05"]
[WhiteElo "1904"]
[BlackElo "1682"]
[Annotator "NA"]
[PlyCount "82"]
[EventDate "2021.04.06"]
[EventType "tourn"]
[EventCountry "POR"]
[SourceTitle "playchess.com"]
[Source "ChessBase"]
[SourceQuality "1"]
[TimeControl "5400+30"]

1. Nf3 {[%emt 0:00:00]} Nf6 {[%emt 0:01:13]} 2. c4 {[%emt 0:00:00]} g6 {[%emt 0:00:51]} 3. Nc3 {[%emt 0:00:00]} Bg7 {[%emt 0:00:49]} 4. g3 {[%emt 0:00:01]} O-O {[%emt 0:01:41]} 5. Bg2 {[%emt 0:00:12]} d6 {[%emt 0:00:47]} 6. O-O {[%emt 0:00:09]} e5 {[%emt 0:00:25]} 7. d3 {[%emt 0:00:09]} Nc6 {[%emt 0:02:10]} 8. Rb1 {[%emt 0:00:09]} Nh5 {[%emt 0:02:50]} 9. b4 {[%emt 0:00:13]} f5 {[%emt 0:01:57]} 10. Bg5 {[%emt 0:03:26]} Bf6 {[%emt 0:02:11]} 11. Bxf6 {[%emt 0:00:20]} Nxf6 {[%emt 0:00:16]} 12. e3 {[%emt 0:00:20]} Kg7 {[%emt 0:01:48]} 13. b5 {[%emt 0:00:11]} Ne7 {[%emt 0:00:49]} 14. a4 {[%emt 0:00:16]} a5 {[%emt 0:04:00]} 15. Nd2 {[%emt 0:01:57]} Rb8 {[%emt 0:01:34]} 16. f4 {[%emt 0:00:10]} b6 {[%emt 0:01:38]} 17. Qe2 {[%emt 0:01:10]} Nd7 {[%emt 0:03:12]} 18. Rbe1 {[%emt 0:00:37]} Bb7 {[%emt 0:01:48]} 19. Nd5 {[%emt 0:02:03]} Nc5 {[%emt 0:04:32]} 20. d4 {[%emt 0:01:02]} Nxd5 {[%emt 0:03:53]} 21. cxd5 {[%emt 0:00:10]} exd4 {[%emt 0:03:30]} 22. exd4 {[%emt 0:00:15]} Nd7 {[%emt 0:00:30]} 23. Qc4 {[%emt 0:00:30]} Nf6 {[%emt 0:07:30]} 24. Re6 {[%emt 0:00:30]} Qd7 {[%emt 0:00:14]} 25. Rfe1 {[%emt 0:00:10]} Rfe8 {[%emt 0:02:21]} 26. h3 {[%emt 0:00:32]} Kf7 {[%emt 0:01:50]} 27. Nf3 {[%emt 0:01:30]} h6 {[%emt 0:03:27]} 28. Nh4 {[%emt 0:01:38]} Rbc8 {[%emt 0:05:39]} 29. Kf2 {[%emt 0:00:31]} Ne4+ {[%emt 0:12:56]} 30. Bxe4 {[%emt 0:00:24]} fxe4 {[%emt 0:01:23]} 31. R1xe4 {[%emt 0:00:15]} Bxd5 {[%emt 0:06:27]} 32. Qxd5 {[%emt 0:01:41]} Rxe6 {[%emt 0:00:19]} 33. Nxg6 {[%emt 0:00:18]} Kf6 {[%emt 0:00:26]} 34. f5 {[%emt 0:01:06]} Rxe4 {[%emt 0:01:19]} 35. Qxe4 {[%emt 0:00:08]} Re8 {[%emt 0:00:12]} 36. Qh4+ {[%emt 0:00:29]} Kg7 {[%emt 0:01:01]} 37. Qg4 {[%emt 0:00:16]} Kh7 {[%emt 0:02:02]} 38. Nh4 {[%emt 0:03:30]} Qf7 {[%emt 0:03:06]} 39. Qd1 {[%emt 0:05:19]} Qa2+ {[%emt 0:01:31]} 40. Kg1 {[%emt 0:04:31]} Re3 {[%emt 0:00:58]} 41. Nf3 {[%emt 0:00:39]} Rb3 {[%emt 0:01:31]} 0-1

[Event "Portugal Honour 2021"]
[Site "Fatima"]
[Date "2021.04.10"]
[Round "6.10"]
[White "Basilio, Rodrigo"]
[Black "Pina, Tiago"]
[Result "0-1"]
[ECO "B35"]
[WhiteElo "1849"]
[BlackElo "1843"]
[Annotator "NA"]
[PlyCount "58"]
[EventDate "2021.04.06"]
[EventType "tourn"]
[EventCountry "POR"]
[SourceTitle "playchess.com"]
[Source "ChessBase"]
[SourceQuality "1"]
[TimeControl "5400+30"]

1. e4 c5 {[%emt 0:00:00]} 2. Nf3 {[%emt 0:01:59]} Nc6 {[%emt 0:00:00]} 3. d4 {[%emt 0:00:03]} cxd4 {[%emt 0:00:00]} 4. Nxd4 {[%emt 0:00:03]} g6 {[%emt 0:00:08]} 5. Nc3 {[%emt 0:01:20]} Bg7 {[%emt 0:00:09]} 6. Be3 {[%emt 0:00:03]} Nf6 {[%emt 0:00:15]} 7. Bc4 {[%emt 0:00:06]} O-O {[%emt 0:00:15]} 8. Bb3 {[%emt 0:00:01]} d5 {[%emt 0:00:37]} 9. exd5 {[%emt 0:22:56]} Na5 {[%emt 0:00:09]} 10. O-O {[%emt 0:13:38]} Nxb3 {[%emt 0:00:42]} 11. Nxb3 {[%emt 0:00:50]} a6 {[%emt 0:00:17]} 12. a4 {[%emt 0:18:04]} b6 {[%emt 0:05:32]} 13. Qd2 {[%emt 0:10:41]} Bb7 {[%emt 0:02:05]} 14. Rfd1 {[%emt 0:01:04]} b5 {[%emt 0:01:57]} 15. Nc5 {[%emt 0:02:53]} Qc8 {[%emt 0:02:30]} 16. axb5 {[%emt 0:14:48]} axb5 {[%emt 0:00:08]} 17. Nxb5 {[%emt 0:04:58]} Rxa1 {[%emt 0:00:10]} 18. Rxa1 {[%emt 0:00:01]} Nxd5 {[%emt 0:00:28]} 19. c4 {[%emt 0:01:14]} Nxe3 20. Qxe3 {[%emt 0:00:01]} Bxb2 {[%emt 0:06:32]} 21. Rb1 {[%emt 0:01:39]} Bf6 {[%emt 0:00:13]} 22. Na7 {[%emt 0:00:27]} Qf5 {[%emt 0:03:03]} 23. Rxb7 {[%emt 0:03:37]} Rd8 {[%emt 0:00:11]} 24. g3 {[%emt 0:00:23]} Bd4 {[%emt 0:00:13]} 25. Qd2 {[%emt 0:01:06]} Qxc5 {[%emt 0:00:19]} 26. Qe2 {[%emt 0:00:30]} Ra8 27. Rd7 {[%emt 0:00:33]} Rxa7 {[%emt 0:02:51]} 28. Rd5 {[%emt 0:00:07]} Qb6 {[%emt 0:00:44]} 29. c5 {[%emt 0:00:28]} Bxc5 {[%emt 0:00:46]} 0-1

[Event "Portugal Honour 2021"]
[Site "Fatima"]
[Date "2021.04.10"]
[Round "7.1"]
[White "Pina, Tiago"]
[Black "Goncalves, Carlos"]
[Result "1-0"]
[ECO "D15"]
[WhiteElo "1843"]
[BlackElo "1600"]
[Annotator "NA"]
[PlyCount "87"]
[EventDate "2021.04.06"]
[EventType "tourn"]
[EventCountry "POR"]
[SourceTitle "playchess.com"]
[Source "ChessBase"]
[SourceQuality "1"]
[TimeControl "5400+30"]

1. Nf3 {[%emt 0:00:00]} c6 {[%emt 0:02:44]} 2. d4 {[%emt 0:00:31]} d5 {[%emt 0:00:56]} 3. c4 {[%emt 0:00:09]} Nf6 {[%emt 0:00:40]} 4. Nc3 {[%emt 0:00:08]} Bg4 {[%emt 0:05:11]} 5. Qb3 {[%emt 0:05:45]} Qb6 {[%emt 0:03:26]} 6. c5 {[%emt 0:02:57]} Qxb3 {[%emt 0:01:33]} 7. axb3 {[%emt 0:00:10]} Bxf3 {[%emt 0:00:08]} 8. exf3 {[%emt 0:00:08]} Nbd7 {[%emt 0:02:25]} 9. f4 {[%emt 0:00:18]} e6 {[%emt 0:00:55]} 10. b4 {[%emt 0:01:11]} g6 {[%emt 0:03:02]} 11. Be3 {[%emt 0:00:43]} Bg7 {[%emt 0:02:43]} 12. b5 {[%emt 0:00:32]} O-O {[%emt 0:01:16]} 13. Bd3 {[%emt 0:00:29]} a6 {[%emt 0:02:34]} (13... cxb5 $11 {keeps the balance.} 14. Bxb5 Rfd8) 14. bxc6 {[%emt 0:03:02]} bxc6 {[%emt 0:00:13]} 15. Kd2 {[%emt 0:07:47]} Rfb8 {[%emt 0:01:59]} 16. Kc2 {[%emt 0:01:13]} a5 $16 {[%emt 0:00:45]} 17. Ra3 {[%emt 0:03:23]} Rb4 {[%emt 0:02:33]} 18. Rha1 {[%emt 0:01:20]} Rab8 {[%emt 0:02:15]} 19. R1a2 {[%emt 0:00:53]} Ng4 {[%emt 0:05:28]} 20. h3 {[%emt 0:03:25]} Nh6 21. Ne2 Nf5 {[%emt 0:03:46]} 22. Bxf5 {[%emt 0:01:23]} exf5 {[%emt 0:00:02]} 23. b3 {[%emt 0:06:04]} Nf6 {[%emt 0:00:38]} 24. Bd2 {[%emt 0:01:52]} R4b7 {[%emt 0:02:18]} 25. f3 {[%emt 0:00:26]} Re8 {[%emt 0:02:07]} 26. Kd3 {[%emt 0:02:59]} Re6 {[%emt 0:02:03]} 27. Ng3 {[%emt 0:03:25]} Bh6 {[%emt 0:06:55]} 28. Kc2 {[%emt 0:01:01]} Nh5 {[%emt 0:01:29]} 29. Nxh5 {[%emt 0:00:40]} gxh5 {[%emt 0:00:02]} 30. Kd3 {[%emt 0:05:02]} h4 {[%emt 0:01:22]} 31. Rb2 {[%emt 0:10:18]} Rb5 {[%emt 0:02:06]} 32. Rb1 {[%emt 0:00:51]} Rg6 {[%emt 0:02:00]} 33. Rg1 {[%emt 0:00:34]} Bg7 {[%emt 0:00:50]} 34. Be1 {[%emt 0:00:52]} Bf6 {[%emt 0:00:11]} 35. Bxa5 {[%emt 0:02:09]} Bg7 {[%emt 0:03:40]} 36. Bc7 {[%emt 0:02:22]} Rb7 {[%emt 0:03:41]} 37. Ra8+ {[%emt 0:01:41]} Bf8 {[%emt 0:00:10]} 38. Bd6 {[%emt 0:01:24]} Rxd6 {[%emt 0:01:58]} 39. cxd6 {[%emt 0:00:12]} Kg7 {[%emt 0:00:38]} 40. Rd8 {[%emt 0:01:25]} Rxb3+ {[%emt 0:00:36]} 41. Kc2 {[%emt 0:00:11]} Re3 {[%emt 0:01:44]} 42. d7 {[%emt 0:00:18]} Re7 {[%emt 0:02:18]} 43. Rxf8 {[%emt 0:00:12]} Rxd7 {[%emt 0:00:07]} 44. Rc8 {[%emt 0:00:09]} 1-0

[Event "Portugal Honour 2021"]
[Site "Fatima"]
[Date "2021.04.10"]
[Round "7.2"]
[White "Sarabando, Rodrigo"]
[Black "Basilio, Rodrigo"]
[Result "1-0"]
[ECO "E97"]
[WhiteElo "1682"]
[BlackElo "1849"]
[Annotator "NA"]
[PlyCount "85"]
[EventDate "2021.04.06"]
[EventType "tourn"]
[EventCountry "POR"]
[SourceTitle "playchess.com"]
[Source "ChessBase"]
[SourceQuality "1"]
[TimeControl "5400+30"]

1. d4 {[%emt 0:00:00]} Nf6 {[%emt 0:02:37]} 2. c4 {[%emt 0:00:00]} g6 {[%emt 0:00:04]} 3. Nc3 {[%emt 0:00:25]} Bg7 {[%emt 0:00:03]} 4. e4 {[%emt 0:00:18]} d6 {[%emt 0:00:04]} 5. Nf3 {[%emt 0:00:05]} O-O {[%emt 0:00:04]} 6. Be2 {[%emt 0:00:06]} e5 {[%emt 0:00:03]} 7. O-O {[%emt 0:00:11]} Nc6 {[%emt 0:00:06]} 8. d5 {[%emt 0:00:04]} Ne7 {[%emt 0:00:06]} 9. b4 {[%emt 0:00:05]} Nh5 {[%emt 0:06:05]} 10. a4 {[%emt 0:01:13]} Nf4 {[%emt 0:04:06]} 11. c5 {[%emt 0:00:26]} Bg4 {[%emt 0:00:52]} 12. Bc4 {[%emt 0:03:47]} f5 {[%emt 0:01:11]} 13. Ra3 {[%emt 0:01:00]} fxe4 {[%emt 0:38:51]} 14. Nxe4 {[%emt 0:00:53]} h6 {[%emt 0:06:09]} 15. h3 {[%emt 0:05:09]} Bh5 {[%emt 0:16:48]} 16. Ng3 {[%emt 0:07:03]} Qd7 {[%emt 0:09:09]} 17. Nxh5 {[%emt 0:03:52]} Nxh5 {[%emt 0:00:59]} 18. Re1 {[%emt 0:01:47]} Nf4 {[%emt 0:01:55]} 19. Nd2 {[%emt 0:20:18]} Kh8 {[%emt 0:09:38]} 20. Ne4 {[%emt 0:00:07]} Rf5 {[%emt 0:00:34]} 21. cxd6 {[%emt 0:07:26]} cxd6 {[%emt 0:00:01]} 22. Bb5 {[%emt 0:00:17]} Qd8 {[%emt 0:00:20]} 23. g4 {[%emt 0:03:43]} Rf8 {[%emt 0:00:16]} 24. Bxf4 {[%emt 0:00:54]} exf4 {[%emt 0:01:07]} 25. h4 {[%emt 0:04:12]} Qb6 {[%emt 0:00:46]} 26. Qd3 {[%emt 0:05:55]} Be5 {[%emt 0:00:33]} 27. Nc5 {[%emt 0:04:29]} dxc5 28. Rxe5 {[%emt 0:00:07]} cxb4 {[%emt 0:00:57]} 29. Ra1 {[%emt 0:00:31]} Qf6 {[%emt 0:00:04]} 30. Rae1 {[%emt 0:00:29]} Ng8 {[%emt 0:01:00]} 31. g5 {[%emt 0:01:07]} Qg7 {[%emt 0:00:26]} 32. d6 {[%emt 0:02:59]} a6 {[%emt 0:00:34]} 33. Bc4 {[%emt 0:02:11]} Rad8 {[%emt 0:00:28]} 34. Bxg8 {[%emt 0:01:02]} Rxg8 {[%emt 0:00:20]} 35. Re7 {[%emt 0:00:42]} Qc3 {[%emt 0:00:07]} 36. Qd5 {[%emt 0:00:40]} b3 {[%emt 0:01:04]} 37. gxh6 {[%emt 0:02:22]} g5 {[%emt 0:00:28]} 38. h5 {[%emt 0:00:15]} g4 {[%emt 0:00:34]} 39. Qf7 {[%emt 0:00:17]} Qxe1+ {[%emt 0:00:29]} 40. Rxe1 {[%emt 0:00:03]} Rxd6 {[%emt 0:00:03]} 41. Re7 {[%emt 0:01:40]} Rxh6 {[%emt 0:00:02]} 42. Qxf4 {[%emt 0:00:11]} Rh7 {[%emt 0:00:14]} 43. Qf6+ {[%emt 0:00:23]} 1-0